[Event "Dutch Open 2022"]
[Site "Dieren"]
[Date "2022.07.28"]
[Round "3.6"]
[White "Omelja, Artem"]
[Black "De Winter, Arthur"]
[Result "0-1"]
[ECO "E94"]
[WhiteElo "2478"]
[BlackElo "2150"]
[Annotator "TA"]
[PlyCount "90"]
[EventDate "2022.07.14"]
[EventType "swiss"]
[EventCountry "NED"]
[SourceTitle "playchess.com"]
[Source "ChessBase"]
[SourceQuality "1"]
[TimeControl "40/5400+30:1800+30"]

{[%evp 19,90,48,92,95,91,82,81,12,10,25,4,20,31,27,23,-20,-5,-4,0,0,8,-30,-34,-48,-47,-89,-88,-66,-75,-112,-73,-89,-98,-155,-54,-43,-36,-41,0,-42,-45,-41,-35,-48,-45,-43,-20,-29,-14,-9,-13,-70,-71,-148,-134,-224,-222,-226,-219,-445,-433,-634,-566,-634,-634,-587,-514,-832,-820,-993,-864,-2647,-677]} 1. Nf3 {[%emt 0:03:44]} Nf6 {[%emt 0:00:05]} 2. c4 {[%emt 0:00:08]} g6 {[%emt 0:00:04]} 3. Nc3 {[%emt 0:00:10]} Bg7 {[%emt 0:00:06]} 4. e4 {[%emt 0:00:08]} d6 {[%emt 0:00:03]} 5. d4 {[%emt 0:00:07]} O-O {[%emt 0:00:06]} 6. Be2 {[%emt 0:00:06]} e5 {[%emt 0:00:02]} 7. O-O {[%emt 0:00:09]} exd4 {[%emt 0:00:05]} 8. Nxd4 {[%emt 0:00:07]} Re8 {[%emt 0:00:03]} 9. f3 {[%emt 0:00:12]} c6 {[%emt 0:00:04]} 10. Kh1 {[%emt 0:00:41]} d5 {[%emt 0:00:12] 10...Nh5 is vanishing.} 11. cxd5 {[%emt 0:03:33] E94: King's Indian: Classical: 6 Be2 e5 7 0-0: Various Black 7th moves.} cxd5 {[%emt 0:00:29]} 12. Bg5 {[%emt 0:01:10]} Nc6 {[%emt 0:00:02] [#]} 13. Nxc6 {[%emt 0:05:04]} ({White should play} 13. Bb5 $1 $16 Qd6 14. exd5 Nxd4 15. Qxd4 (15. Bxf6 Nxb5 16. Bxg7 Bd7 $16)) 13... bxc6 $11 {[%emt 0:00:17]} 14. exd5 {[%emt 0:00:25]} cxd5 {[%emt 0:00:22]} 15. Bb5 {[%emt 0:00:27] Threatens to win with Bxf6.} Re5 {[%emt 0:02:00]} 16. f4 {[%emt 0:03:18]} Re6 {[%emt 0:00:44] [#]} 17. Bc4 $146 {[%emt 0:08:17][%cal Rc4d5]} (17. f5 $5 {[%cal Rf5e6]} Re5 18. Bc6 Bxf5 19. Bxf6 Bxf6 20. Bxa8 Qxa8 21. Qf3 $14) ({Predecessor:} 17. f5 Re5 18. Bxf6 Bxf6 19. fxg6 hxg6 20. Bc6 Rb8 21. Bxd5 Rxb2 22. Bxf7+ Kg7 23. Qxd8 Bxd8 {0-1 (31) Barseghyan,A (2358)-Harutjunyan,G (2415) Cheliabinsk 2022}) 17... Bb7 {[%emt 0:09:11]} 18. Bb3 {[%emt 0:02:08]} Rd6 {[%emt 0:23:26]} 19. f5 $1 {[%emt 0:05:21]} d4 {[%emt 0:03:00]} 20. Ne2 {[%emt 0:05:42]} Qa5 $36 {[%emt 0:10:28][%mdl 2048] Black fights for an advantage.} 21. Bd2 {[%emt 0:19:01]} ({But not} 21. Nxd4 Rad8 22. Be3 Qb6 23. fxg6 hxg6 $17) 21... Qb6 {[%emt 0:07:26]} 22. fxg6 {[%emt 0:02:25]} hxg6 {[%emt 0:00:08]} 23. Nf4 {[%emt 0:00:22]} Be4 {[%emt 0:01:20]} 24. Qe1 {[%emt 0:02:28]} Bf5 {[%emt 0:13:01] Black is more active.} 25. Ba5 {[%emt 0:02:08]} Qa6 {[%emt 0:08:32]} 26. Qb4 {[%emt 0:06:23]} (26. Rc1 $142) 26... Bf8 {[%emt 0:01:42]} (26... Rc8 $17 {And now ...d3 would win.} 27. Qa4 d3) 27. Bc4 $15 {[%emt 0:03:00]} Qc8 {[%emt 0:01:20] Hoping for ...Rb8.} 28. Rac1 {[%emt 0:01:13][%cal Oc4f7] [#] aiming for Bxf7+!} Qe8 {[%emt 0:06:58]} (28... Rc6 $5 {[%cal Rf8b4]} 29. Qa4 Be4 $15) 29. Qe1 {[%emt 0:02:42]} Qxe1 {[%emt 0:02:49]} 30. Rcxe1 {[%emt 0:01:00]} Rc8 {[%emt 0:01:19]} 31. Bd3 {[%emt 0:00:22]} Bxd3 {[%emt 0:00:43]} 32. Nxd3 {[%emt 0:00:08]} Nd5 {[%emt 0:01:32]} 33. Rc1 {[%emt 0:00:08]} Rdc6 {[%emt 0:02:25]} 34. Rxc6 {[%emt 0:03:25]} Rxc6 {[%emt 0:00:04]} 35. Kg1 {[%emt 0:00:54]} ({White should try} 35. Bd2 $11) 35... Bh6 {[%emt 0:01:23]} 36. g3 {[%emt 0:03:05]} (36. Kf2 $142) 36... Rc2 $17 {[%emt 0:01:32]} 37. Be1 {[%emt 0:00:13]} (37. Re1 $17) 37... Be3+ $19 {[%emt 0:03:10]} 38. Kh1 {[%emt 0:00:02]} f5 {[%emt 0:00:20]} 39. h4 $2 {[%emt 0:00:08]} (39. h3 {is a better defense.}) 39... Nf6 {[%emt 0:00:41] Strongly threatening ...Ng4. Black is clearly winning.} 40. Bf2 {[%emt 0:00:42]} (40. Ne5 $142) 40... Rd2 {[%emt 0:00:49]} 41. Bxe3 {[%emt 0:30:17]} dxe3 {[%emt 0:30:20][%cal Bd4e3,Be3e2][%mdl 32]} 42. Nf4 {[%emt 0:00:21]} e2 {[%emt 0:00:00][%cal Re2f1]} 43. Re1 {[%emt 0:00:00]} (43. Rg1 $142 Ng4 44. Ng2) 43... Rd1 {[%emt 0:00:00]} 44. Ng2 {[%emt 0:00:00]} Ng4 {[%emt 0:00:00] ...Ne5 is the strong threat.} 45. Kg1 {[%emt 0:00:00]} Kf7 {[%emt 0:00:00] Weighted Error Value: White=0.57/Black=0.13 (very precise)} 0-1

[Event "Dutch Open 2022"]
[Site "Dieren"]
[Date "2022.07.28"]
[Round "3.7"]
[White "Zwirs, Jasper"]
[Black "Burdalev, Kirill"]
[Result "1/2-1/2"]
[ECO "C01"]
[WhiteElo "2105"]
[BlackElo "2381"]
[Annotator "TA"]
[PlyCount "63"]
[EventDate "2022.07.14"]
[EventType "swiss"]
[EventCountry "NED"]
[SourceTitle "playchess.com"]
[Source "ChessBase"]
[SourceQuality "1"]
[TimeControl "40/5400+30:1800+30"]

{[%evp 15,63,24,24,6,11,3,11,12,12,-7,18,23,43,4,13,5,36,36,64,52,67,33,50,50,68,60,79,52,50,57,115,120,155,162,240,175,177,158,202,167,165,164,161,64,110,100,101,55,69,66]} 1. e4 {[%emt 0:00:04]} e6 {[%emt 0:02:16]} 2. d4 {[%emt 0:00:13]} d5 {[%emt 0:00:04]} 3. Nc3 {[%emt 0:00:05]} Bb4 {[%emt 0:00:06]} 4. exd5 {[%emt 0:00:32]} exd5 {[%emt 0:00:18]} 5. Bd3 {[%emt 0:00:04]} Nc6 {[%emt 0:02:47]} 6. a3 {[%emt 0:00:26]} Ba5 {[%emt 0:00:53]} 7. Nge2 {[%emt 0:01:59]} Nge7 {[%emt 0:00:23]} 8. O-O {[%emt 0:04:42]} O-O {[%emt 0:05:04]} 9. Be3 {[%emt 0:14:41] C01: French: Exchange Variation.} Bf5 {[%emt 0:00:16]} (9... Nf5 {keeps more tension.} 10. Na4 Nxe3 11. fxe3 Qg5) 10. b4 {[%emt 1:12:44]} Bb6 {[%emt 0:00:28]} 11. Na4 {[%emt 0:00:00] [#] The position is equal.} Re8 $146 {[%emt 0:04:10]} ({Predecessor:} 11... Bxd3 12. Qxd3 Qd7 13. Ng3 f5 14. f4 Nc8 15. Nc5 Bxc5 16. dxc5 a6 17. Rad1 N8e7 {1-0 (45) Wettengel,A (2105)-Ruff,R (1871) Ditzingen 2016}) 12. Ng3 {[%emt 0:00:00]} Bg6 {[%emt 0:07:01]} 13. c3 {[%emt 0:00:00]} Nc8 {[%emt 0:00:38]} 14. Nb2 {[%emt 0:00:00]} Nd6 {[%emt 0:02:33]} 15. Bf4 {[%emt 0:00:00]} Ne4 {[%emt 0:05:11]} 16. Nxe4 {[%emt 0:00:00]} dxe4 {[%emt 0:12:42]} 17. Bb5 {[%emt 0:00:00]} Qf6 {[%emt 0:01:54]} 18. Bxc6 {[%emt 0:00:00]} Qxc6 {[%emt 0:15:09]} 19. c4 $1 {[%emt 0:00:00][%cal Bc3c4,Bc4c5][%mdl 32] [#] Black must now prevent c5.} a6 {[%emt 0:03:40]} 20. c5 {[%emt 0:00:00]} Ba7 {[%emt 0:00:06]} 21. Qb3 {[%emt 0:00:00]} Rad8 {[%emt 0:00:30]} 22. Rad1 {[%emt 0:00:00]} Rd5 {[%emt 0:08:39] [#]} (22... Bb8 $14) 23. Bxc7 $1 $16 {[%emt 0:00:00][%mdl 512]} Bh5 {[%emt 0:02:36]} (23... Qd7 24. Bd6) 24. Rd2 {[%emt 0:00:00]} Bg4 {[%emt 0:02:51]} (24... f6 {was called for.}) 25. Bg3 {[%emt 0:00:00]} Be6 {[%emt 0:01:53][%cal Rd5c5]} 26. Qa4 {[%emt 0:00:00]} Bd7 {[%emt 0:03:46]} 27. Qxc6 {[%emt 0:00:00]} Bxc6 {[%emt 0:00:04]} 28. Nc4 {[%emt 0:00:00]} Red8 {[%emt 0:01:09]} 29. Nd6 {[%emt 0:05:47]} (29. Rfd1 $18) 29... f5 {[%emt 0:05:10]} (29... Bb8 $14 {deserves consideration.}) 30. Be5 {[%emt 0:00:44]} Bb8 {[%emt 0:00:58]} 31. Rfd1 {[%emt 0:01:01] White is much more active.} (31. Rc2 $16) 31... Bxd6 $14 {[%emt 0:01:39]} 32. cxd6 {[%emt 0:03:28] Weighted Error Value: White=0.18 (very precise) /Black=0.19 (very precise)} 1/2-1/2

[Event "Dutch Open 2022"]
[Site "Dieren"]
[Date "2022.07.28"]
[Round "3.8"]
[White "Bus, Tom"]
[Black "Maatman, Nick"]
[Result "1-0"]
[ECO "E05"]
[WhiteElo "2102"]
[BlackElo "2368"]
[Annotator "TA"]
[PlyCount "87"]
[EventDate "2022.07.14"]
[EventType "swiss"]
[EventCountry "NED"]
[SourceTitle "playchess.com"]
[Source "ChessBase"]
[SourceQuality "1"]
[TimeControl "40/5400+30:1800+30"]

{[%evp 13,87,10,0,23,18,0,3,3,11,14,6,0,0,2,35,-37,-6,-45,-29,-56,-46,-84,-78,-77,-76,-83,-80,-102,-55,-97,-58,-141,-80,-79,-97,-89,-18,-2,-3,-105,-113,-231,-33,-31,4,6,97,-27,227,-29,0,0,0,-112,-10,-10,-10,-256,45,-256,-256,-310,-295,-247,1414,1375,1331,1133,1710,1697,29955,29940,6816,5281,2302,1677]} 1. Nf3 {[%emt 0:00:08]} d5 {[%emt 0:00:16]} 2. g3 {[%emt 0:00:31]} Nf6 {[%emt 0:01:18]} 3. Bg2 {[%emt 0:00:29]} e6 {[%emt 0:00:54]} 4. O-O {[%emt 0:00:33]} Be7 {[%emt 0:00:57]} 5. d4 {[%emt 0:00:33]} O-O {[%emt 0:03:48]} 6. c4 {[%emt 0:01:06]} dxc4 {[%emt 0:00:05]} 7. Qc2 {[%emt 0:01:03]} b5 {[%emt 0:00:47]} 8. a4 {[%emt 0:01:08] E05: Open Catalan: 5 Nf3 Be7.} b4 {[%emt 0:01:42]} 9. Nfd2 {[%emt 0:04:08]} c6 {[%emt 0:00:20]} 10. Nxc4 {[%emt 0:01:17] The position is equal.} Qxd4 {[%emt 0:00:11]} 11. Rd1 {[%emt 0:08:33]} Qc5 {[%emt 0:02:13]} 12. Be3 {[%emt 0:02:40]} Qh5 {[%emt 0:00:06]} 13. Nbd2 {[%emt 0:01:05]} e5 {[%emt 0:03:29] Inhibits Bd4.} (13... Ng4 $5 {[%cal Rh5h2]}) 14. Nf1 {[%emt 0:10:50]} (14. Ne4 $14) 14... Bf5 $15 {[%emt 0:12:40] [#]} 15. Qb3 $146 {[%emt 0:05:34]} ({Predecessor:} 15. Qc1 Be6 16. Bf3 Qf5 17. Nd6 Bxd6 18. Rxd6 Bd5 19. Qc5 a5 20. Bxd5 cxd5 21. Rc1 {1-0 (60) Palozza,C (2284)-Pisacane,P (2138) Acqui Terme 2022}) 15... Qxe2 {[%emt 0:09:37] And now ...Bc2 would win.} 16. Rd2 {[%emt 0:03:50] Inhibits Bc2.} Qh5 {[%emt 0:00:16]} 17. Nxe5 {[%emt 0:03:27]} Be6 {[%emt 0:01:17]} 18. Nc4 {[%emt 0:00:18]} Nbd7 $1 {[%emt 0:02:54] ...Ne5 is the strong threat.} 19. Qc2 {[%emt 0:01:48]} b3 {[%emt 0:04:28]} 20. Qc1 {[%emt 0:00:49]} Nd5 {[%emt 0:07:26]} (20... Bd5 $17 21. Rd1 Rfe8) 21. a5 {[%emt 0:07:56]} Nb4 {[%emt 0:06:16] aiming for ...Nc2.} 22. a6 {[%emt 0:08:51]} ({Better is} 22. Qd1 $15 Qxd1 23. Raxd1) 22... Ne5 {[%emt 0:16:40]} (22... Nc2 $142 $1 {[%cal Rc2a1]} 23. Ra5 Qg4) 23. Nxe5 $17 {[%emt 0:02:26]} Qxe5 {[%emt 0:00:01]} 24. Bd4 {[%emt 0:05:40]} Qb5 {[%emt 0:00:51]} (24... Qh5 $17 25. Qd1 Qxd1 26. Raxd1 Rad8) 25. Qc3 $1 $11 {[%emt 0:02:56]} Nc2 {[%emt 0:13:56]} 26. Rxc2 {[%emt 0:12:44]} (26. Bxc6 $11 Bb4 27. Qxc2 (27. Bxb5 Bxc3 28. Rxc2 Bxd4 $15) 27... bxc2 28. Bxb5 Bxd2 29. Nxd2) 26... bxc2 $17 {[%emt 0:00:44]} 27. Bxg7 {[%emt 0:07:00]} (27. Ne3 $17) 27... Rfd8 $2 {[%emt 0:05:24]} (27... Bb4 $19 28. Qf6 Qf5) 28. Bh6 $15 {[%emt 0:00:44][%csl Gh6][%cal Rc3g7]} f6 {[%emt 0:02:23] Strongly threatening ...Qb3.} 29. Qxc2 {[%emt 0:00:46]} Rab8 {[%emt 0:01:19]} (29... Bf8 $11 {keeps the balance.} 30. Bxf8 Rxf8) 30. Be4 {[%emt 0:00:30]} (30. Re1 $16 Bb3 31. Qe4) 30... Qxb2 $2 {[%emt 0:01:55][%mdl 8192] [#]} (30... f5 $11 {and Black has nothing to worry.} 31. Bf3 Bf6) 31. Qxc6 $1 {[%emt 0:01:31]} Rd6 {[%emt 0:01:05]} (31... Rb6 32. Qc7) 32. Qc7 {[%emt 0:00:14][%cal Oc7e7] Dancing on a razor blade.} Rd7 $36 {[%emt 0:00:06][%mdl 2048] Black is pushing.} 33. Qf4 {[%emt 0:00:22]} (33. Qc6 $11 Rb6 34. Qa8+ Rb8 35. Qc6) 33... Qxa1 {[%emt 0:00:40]} (33... Bd6 $17 34. Qc1 Be5 35. Qxb2 Rxb2) 34. Qxb8+ $11 {[%emt 0:00:05]} Rd8 {[%emt 0:00:39]} 35. Qxa7 {[%emt 0:00:28]} (35. Qc7 $11 Qa3 36. Be3) 35... Rd1 $2 {[%emt 0:00:29]} ({Black should play} 35... Bc4 $19 {[%csl Gc4][%cal Ra1f1]} 36. Bg2 Rd1 $1) 36. Bg2 {[%emt 0:04:32][%mdl 8192]} (36. Qxe7 {leads to mate.} Rxf1+ 37. Kg2 Rg1+ 38. Kf3 Qd1+ 39. Kf4 Qg4+ 40. Ke3 Re1+ 41. Kd4 Qxe4+ 42. Kc5 Qc4+ 43. Kb6 Rb1+ 44. Ka7 Qd4+ 45. Ka8 Bd5+) (36. Qb8+ $14 {keeps the upper hand.} Kf7 37. Qb5) 36... Bc4 $19 {[%emt 0:00:30][%csl LRa6,LRf1][%cal Rd1f1]} 37. h4 {[%emt 0:00:44]} Rxf1+ {[%emt 0:00:13]} (37... Kf7 38. Bf3 Rxf1+ 39. Kg2 Qxa6 40. Bh5+ Ke6 41. Qe3+ Kd7 42. Bg4+ Ke8 43. Bh5+ Kd7 44. Bg4+ f5 45. Qd4+ Ke6 46. Qe4+ Kf7 47. Bh5+ Kg8 48. Qd4 Qc6+ 49. Bf3 $15) 38. Kh2 {[%emt 0:00:01] [#]} Re1 {[%emt 0:00:20][%mdl 8192]} (38... Kf7 $1 $19 39. Bxf1 Qxf1) 39. Qb8+ $18 {[%emt 0:00:14]} Kf7 {[%emt 0:00:42]} 40. a7 {[%emt 0:00:14]} Bd6 {[%emt 0:00:00]} 41. Qb7+ {[%emt 0:02:14]} Kg6 {[%emt 0:01:33]} 42. Qg7+ {[%emt 0:00:13]} Kf5 {[%emt 0:00:33]} 43. Qxh7+ {[%emt 0:00:20]} Ke6 {[%emt 0:00:19]} 44. a8=Q {[%emt 0:00:27] Weighted Error Value: White=0.62/Black=0.76} 1-0

[Event "Dutch Open 2022"]
[Site "Dieren"]
[Date "2022.07.28"]
[Round "3.9"]
[White "Ypma, Peter"]
[Black "Kumar, Prajit Sai"]
[Result "1-0"]
[ECO "D00"]
[WhiteElo "2346"]
[BlackElo "2040"]
[Annotator "TA"]
[PlyCount "79"]
[EventDate "2022.07.14"]
[EventType "swiss"]
[EventCountry "NED"]
[SourceTitle "playchess.com"]
[Source "ChessBase"]
[SourceQuality "1"]
[TimeControl "40/5400+30:1800+30"]

{[%evp 9,79,0,2,2,9,10,8,13,9,11,9,12,11,7,0,2,17,5,57,64,52,55,62,62,67,62,76,76,65,57,89,60,84,70,51,51,90,87,90,91,91,79,131,119,131,150,181,175,287,283,296,301,295,306,306,306,306,-770,306,299,306,291,298,298,282,257,255,247,343,320,1320,1220]} 1. d4 {[%emt 0:00:36]} d5 {[%emt 0:00:06]} 2. Nc3 {[%emt 0:00:07]} Nf6 {[%emt 0:00:21]} 3. Bf4 {[%emt 0:00:07]} a6 {[%emt 0:00:25]} 4. e3 {[%emt 0:00:08]} Bf5 {[%emt 0:00:16]} 5. Nf3 {[%emt 0:00:10]} e6 {[%emt 0:00:19]} 6. Ne5 {[%emt 0:00:10] D00: 1 d4 d5: Unusual lines.} Nbd7 {[%emt 0:00:23]} 7. g4 {[%emt 0:00:15]} Nxe5 {[%emt 0:00:25]} 8. gxf5 {[%emt 0:00:09] The position is equal.} Nc6 {[%emt 0:00:23] [#]} 9. Qd3 $146 {[%emt 0:00:15]} ({Predecessor:} 9. fxe6 fxe6 10. Bh3 Qd7 11. a3 Bd6 12. Bxd6 cxd6 13. Qf3 O-O 14. Nxd5 Nxd5 15. Qxd5 {1-0 (41) Stefanova,A (2470)-Khotenashvili,B (2476) Hengshui 2019}) 9... Qd7 {[%emt 0:01:40]} 10. fxe6 {[%emt 0:00:12]} fxe6 {[%emt 0:00:06]} 11. a3 {[%emt 0:00:17]} Bd6 {[%emt 0:04:49]} 12. Bg3 {[%emt 0:05:04]} O-O {[%emt 0:09:27]} 13. Bg2 {[%emt 0:01:54]} Ne7 {[%emt 0:03:34]} ({Better is} 13... g6 $11) 14. e4 $14 {[%emt 0:01:41]} dxe4 {[%emt 0:00:36]} 15. Nxe4 {[%emt 0:00:19]} Nf5 {[%emt 0:01:05]} 16. O-O-O {[%emt 0:07:48]} Nxe4 {[%emt 0:11:09]} 17. Bxe4 {[%emt 0:01:40]} c6 {[%emt 0:01:00]} 18. Rhe1 {[%emt 0:02:45]} Rad8 {[%emt 0:03:48]} 19. c3 {[%emt 0:06:46]} Kh8 {[%emt 0:05:46]} 20. Kb1 {[%emt 0:01:17]} a5 {[%emt 0:01:05]} 21. Qe2 {[%emt 0:01:48]} b5 {[%emt 0:06:46]} 22. Bc2 {[%emt 0:02:09]} Rfe8 {[%emt 0:02:56]} 23. Bxd6 {[%emt 0:02:52]} Nxd6 {[%emt 0:00:14]} 24. Qh5 {[%emt 0:09:37][%csl Gc2][%cal Rh5h7]} Nf5 {[%emt 0:00:16]} 25. Re5 {[%emt 0:00:19]} Rf8 {[%emt 0:06:58]} (25... g6 $142 26. Qg5 b4) 26. Rde1 $40 {[%emt 0:05:54][%mdl 128] White attacks with force. White is more active.} g6 {[%emt 0:03:46]} 27. Qg5 {[%emt 0:09:12] Black must now prevent Bxf5.} Rde8 {[%emt 0:02:32][%cal Ob5b4]} 28. h4 {[%emt 0:06:17]} Ng7 {[%emt 0:00:28]} (28... Qf7 {was necessary.} 29. h5 gxh5) 29. h5 $1 $18 {[%emt 0:01:37]} Nxh5 {[%emt 0:04:00] [#]} 30. Bxg6 $1 {[%emt 0:01:27][%mdl 576] Demolition} hxg6 {[%emt 0:01:25]} 31. Qxg6 {[%emt 0:01:24]} Nf6 {[%emt 0:01:37]} 32. Rh1+ {[%emt 0:00:40]} Nh7 {[%emt 0:00:04] [#]} 33. Rxh7+ {[%emt 0:00:30][%mdl 512]} Qxh7 {[%emt 0:00:01]} 34. Rh5 {[%emt 0:00:08]} Qxh5 {[%emt 0:07:28]} 35. Qxh5+ {[%emt 0:00:18] KQ-KRR} Kg7 {[%emt 0:00:07]} 36. Qg4+ {[%emt 0:00:09]} Kf6 {[%emt 0:00:32]} 37. Qf3+ {[%emt 0:00:08]} Ke7 {[%emt 0:00:11]} 38. Qxc6 {[%emt 0:00:08]} Rxf2 {[%emt 0:01:18]} 39. d5 {[%emt 0:10:35] Hoping for Qc5+.} ({Don't play} 39. Qxb5 Rf5 40. Qb7+ Kf6) 39... exd5 $2 {[%emt 0:00:07]} (39... Rf1+ 40. Ka2 exd5 41. Qxb5 Rff8 42. Qxd5 Ra8) 40. Qc5+ {[%emt 0:00:12] Weighted Error Value: White=0.03 (flawless) /Black=0.18 (very precise)} 1-0

[Event "Dutch Open 2022"]
[Site "Dieren"]
[Date "2022.07.28"]
[Round "3.10"]
[White "Stillger, Bernhard"]
[Black "Manukonda Arun"]
[Result "1/2-1/2"]
[ECO "D02"]
[WhiteElo "2245"]
[BlackElo "2021"]
[Annotator "TA"]
[PlyCount "82"]
[EventDate "2022.07.14"]
[EventType "swiss"]
[EventCountry "NED"]
[SourceTitle "playchess.com"]
[Source "ChessBase"]
[SourceQuality "1"]
[TimeControl "40/5400+30:1800+30"]

{[%evp 9,82,21,27,7,7,8,4,9,51,19,29,28,33,20,8,10,6,4,11,3,40,31,48,-16,-8,-14,-1,-8,9,15,18,18,26,0,0,0,0,0,25,0,0,0,0,0,5,6,29,21,29,25,9,0,35,33,23,27,42,23,161,102,215,205,166,160,221,214,191,0,155,0,0,0,145,0,0]} 1. Nf3 {[%emt 1:31:00]} d5 {[%emt 0:00:57]} 2. g3 {[%emt 0:00:00]} Nc6 {[%emt 0:00:29]} 3. d4 {[%emt 0:00:00]} Bf5 {[%emt 0:00:22]} 4. Bg2 {[%emt 0:00:00]} Nb4 {[%emt 0:01:28]} 5. Na3 {[%emt 0:00:00]} e6 {[%emt 0:00:15]} 6. c3 {[%emt 0:00:00] D02: 1 d4 d5 2 Nf3 sidelines, including 2...Nf6 3 g3 and 2...Nf6 3 Bf4.} Nc6 {[%emt 0:00:01]} 7. Qb3 {[%emt 0:00:00]} Rb8 {[%emt 0:00:15]} 8. O-O {[%emt 0:00:00] [#]} Be4 $146 {[%emt 0:03:09]} ({Predecessor:} 8... Be7 9. Bf4 a6 10. Ne5 Nf6 11. Rfd1 O-O 12. c4 Nb4 13. Rac1 c6 14. c5 a5 {0-1 (43) Svidler,P (2756)-Bauer,C (2626) Porto Carras 2018}) 9. Re1 {[%emt 0:00:00]} Nf6 {[%emt 0:05:58]} 10. Bg5 {[%emt 0:00:00]} Be7 {[%emt 0:01:25]} 11. Nd2 {[%emt 0:00:00]} Bxg2 {[%emt 0:00:03]} 12. Kxg2 {[%emt 0:00:00]} O-O {[%emt 0:08:16]} 13. Bxf6 {[%emt 0:00:00]} Bxf6 {[%emt 0:01:08]} 14. e4 {[%emt 0:00:00]} a6 {[%emt 0:03:30]} 15. Nc2 {[%emt 0:00:00]} b5 {[%emt 0:01:25]} 16. Nb4 {[%emt 0:00:00]} (16. Ne3 $14) 16... Nxb4 $11 {[%emt 0:06:37]} 17. Qxb4 {[%emt 0:00:00]} Be7 {[%emt 0:01:55]} 18. Qb3 {[%emt 0:00:00]} b4 {[%emt 0:02:04]} 19. c4 {[%emt 0:00:00][%cal Rc4d5]} dxe4 {[%emt 0:04:44]} 20. Rxe4 {[%emt 0:00:00]} c5 {[%emt 0:00:37]} 21. Nf3 {[%emt 0:00:00]} cxd4 {[%emt 0:09:51]} 22. Rxd4 {[%emt 0:00:00]} Qc7 {[%emt 0:00:22]} 23. Rad1 {[%emt 0:00:00][%cal Ba1d1,Bd1d4,Bd4d3][%mdl 32]} Rfd8 {[%emt 0:01:54] Inhibits Rd7.} 24. Qc2 {[%emt 0:00:00]} Qc6 {[%emt 0:03:56]} 25. b3 {[%emt 0:00:00]} Rxd4 {[%emt 0:00:57]} 26. Rxd4 {[%emt 0:00:00]} Bf6 {[%emt 0:01:50]} 27. Qe4 {[%emt 0:00:00]} Qc7 {[%emt 0:06:37]} 28. Rd3 {[%emt 0:00:00]} Rc8 {[%emt 0:08:36]} 29. g4 {[%emt 0:00:00]} h6 {[%emt 0:00:16]} 30. h4 {[%emt 0:00:00][%cal Bh2h4,Bh4g5][%mdl 32]} Qa5 {[%emt 0:01:43] Prevents g5.} 31. Rd7 {[%emt 0:01:11]} Rd8 $1 {[%emt 0:02:18]} 32. Rxd8+ {[%emt 0:05:37]} Qxd8 {[%emt 0:00:52][%mdl 4096] Endgame KQB-KQN} 33. c5 {[%emt 0:01:11][%cal Bc4c5,Bc5c6][%mdl 32]} Qa5 {[%emt 0:04:26]} (33... a5 $11 {and Black stays safe.}) 34. g5 {[%emt 0:02:19]} (34. Qa8+ $18 Kh7 35. Qa7) 34... hxg5 {[%emt 0:00:12]} (34... Be7 $16) 35. hxg5 $18 {[%emt 0:00:02]} Be7 {[%emt 0:00:56]} 36. c6 {[%emt 0:00:17]} g6 {[%emt 0:01:58]} (36... Bd6 $16) 37. Qf4 {[%emt 0:03:53] Strongly threatening Ne5.} Bd8 {[%emt 0:01:23]} 38. Qd6 {[%emt 0:01:47]} (38. Ne5 $18 Qc7 39. Kf3) 38... Kg7 {[%emt 0:01:51] [#]} ({Black should play} 38... Bc7 $11 39. Qe7 Bb6) 39. Qd4+ $2 {[%emt 0:00:30]} (39. Qe5+ $1 $16 Kf8 40. Qxa5 (40. Qh8+ Ke7 $14) 40... Bxa5 41. Ne5) 39... Kg8 $11 {[%emt 0:00:16]} 40. Qd6 {[%emt 0:01:31]} Kg7 {[%emt 0:00:01] [#]} (40... Bc7 $11 {keeps the balance.} 41. Qd4 Qf5) 41. Qd4+ {[%emt 0:14:02]} (41. Qe5+ $1 $16 Kf8 42. Qxa5 (42. Qh8+ Ke7 $14) 42... Bxa5 43. Ne5) 41... Kg8 {[%emt 0:03:07] Weighted Error Value: White=0.27 (precise) /Black=0.35} 1/2-1/2